bitfinex/quotes_SOLUSD_20220307
["timestamp","ask_amount","ask_price","bid_price","bid_amount"]
[1646658039790,1.85541886,84.193,84.151,0.25]
[1646658040192,0.25,84.193,84.151,0.25]
[1646658040593,1.85541886,84.193,84.151,0.25]
[1646658040791,1.60541886,84.192,84.142,0.25]
[1646658040994,0.25,84.191,84.142,0.25]
[1646658041394,1.60541886,84.19,84.142,0.25]
[1646658041591,0.25,84.189,84.142,0.25]
[1646658042293,1.60541886,84.19,84.15,17.8284]
[1646658042494,1.60541886,84.194,84.151,6.25]
[1646658042796,1.60541886,84.195,84.151,6.25]
[1646658042995,0.25,84.194,84.151,6.25]
[1646658043396,1.85541886,84.194,84.151,6.25]
[1646658043598,0.25,84.194,84.151,6.25]
[1646658045499,0.25,84.194,84.151,0.25]
[1646658045700,1.85541886,84.194,84.142,0.25]
[1646658046105,1.85541886,84.194,84.136,0.25]
[1646658047003,6.0,84.193,84.136,0.25]
[1646658047203,6.0,84.193,84.15,17.8283]
[1646658047403,6.0,84.193,84.151,6.25]
[1646658048206,1.85541886,84.194,84.151,6.25]
[1646658049507,6.0,84.193,84.151,6.25]
[1646658050008,7.60541886,84.193,84.151,6.25]
[1646658050508,6.0,84.193,84.151,6.25]
[1646658051513,0.25,84.194,84.151,6.25]
[1646658051718,0.25,84.195,84.151,6.25]
[1646658052113,1.85541886,84.195,84.151,6.25]
[1646658052313,6.0,84.194,84.151,6.25]
[1646658052714,7.85541886,84.195,84.151,6.25]
[1646658052913,6.25,84.195,84.151,6.25]
[1646658053315,7.85541886,84.195,84.151,6.25]
[1646658053517,6.25,84.195,84.151,6.25]
[1646658054318,1.60541886,84.192,84.151,6.25]
[1646658054518,7.60541886,84.191,84.151,6.25]
[1646658054727,6.0,84.19,84.151,6.25]
[1646658055216,7.60541886,84.19,84.151,6.25]
[1646658055416,6.0,84.19,84.16,17.8259]
[1646658055621,6.0,84.19,84.161,0.25]
[1646658056017,6.0,84.192,84.161,0.25]
[1646658056418,7.60541886,84.192,84.161,0.25]
[1646658056822,1.60541886,84.191,84.141,6.25]
[1646658057018,1.60541886,84.189,84.141,6.25]
[1646658057221,1.60541886,84.186,84.141,6.25]
[1646658057418,1.60541886,84.184,84.141,6.25]
[1646658057819,47.7027625,84.185,84.141,6.25]
[1646658058019,1.85541886,84.184,84.141,6.25]
[1646658060138,1.60541886,84.183,84.141,6.25]
[1646658060339,1.85541886,84.184,84.141,6.25]
[1646658060537,1.60541886,84.183,84.141,6.25]
[1646658061342,1.85541886,84.184,84.141,6.25]
[1646658062239,1.85541886,84.184,84.15,17.8283]
[1646658062439,0.25,84.184,84.151,0.25]
[1646658063041,1.60541886,84.186,84.151,0.25]
[1646658063445,1.60541886,84.193,84.151,0.25]
[1646658063647,1.60541886,84.194,84.16,17.8265]
[1646658063845,1.60541886,84.194,84.161,6.25]
[1646658064047,38.65393843,84.194,84.161,6.25]
[1646658065049,1.60541886,84.193,84.161,6.25]
[1646658065250,40.25935729,84.194,84.161,0.25]
[1646658065450,40.25935729,84.194,84.152,0.25]
[1646658065651,40.25935729,84.194,84.151,0.25]
[1646658065850,1.60541886,84.193,84.151,6.25]
[1646658066249,40.25935729,84.194,84.151,6.25]
[1646658067058,40.25935729,84.194,84.151,0.25]
[1646658067757,40.25935729,84.194,84.16,17.8259]
[1646658067958,1.60541886,84.198,84.161,0.25]
[1646658068156,100.0,84.2,84.161,6.25]
[1646658068656,100.0,84.2,84.162,5.939]
[1646658068857,100.0,84.2,84.17,17.8205]
[1646658069056,100.0,84.2,84.171,6.25]
[1646658069458,100.0,84.2,84.171,11.96]
[1646658069661,100.0,84.2,84.171,5.96]
[1646658069958,77.456,84.2,84.18,17.8184]
[1646658070158,77.456,84.2,84.181,16.21863913]
[1646658073462,77.456,84.2,84.182,119.4]
[1646658073663,66.3535095,84.2,84.183,5.938]
[1646658073862,0.6764,84.217,84.183,5.938]
[1646658074060,0.6764,84.217,84.184,0.105359]
[1646658074266,0.6764,84.217,84.186,0.10874761]
[1646658074465,0.6764,84.217,84.191,119.4]
[1646658074863,0.6764,84.217,84.192,5.937]
[1646658075063,0.6764,84.217,84.192,22.50643499]
[1646658076167,0.6764,84.217,84.193,119.4]
[1646658076465,0.6764,84.217,84.194,5.937]
[1646658076866,0.6764,84.217,84.2,17.813]
[1646658077067,0.6764,84.217,84.201,5.937]
[1646658080495,0.6764,84.217,84.2,6.0]
[1646658080694,0.6764,84.217,84.194,24.5528]
[1646658081094,0.78401247,84.268,84.195,5.937]
[1646658081297,0.649,84.268,84.195,5.937]
[1646658081496,17.8186,84.25,84.19,6.0]
[1646658081695,180.91394816,84.249,84.19,0.25]
[1646658081897,180.91394816,84.249,84.17,22.7893]
[1646658081898,0.17805567,84.248,84.17,28.7893]
[1646658082297,0.79925567,84.248,84.171,5.937]
[1646658082496,17.8222,84.24,84.171,5.937]
[1646658082695,22.9248,84.239,84.171,5.937]
[1646658082897,0.10485012,84.238,84.171,5.937]
[1646658083798,17.8237,84.23,84.171,5.937]
[1646658083997,119.4,84.227,84.17,6.0]
[1646658084199,0.21597424,84.226,84.14,24.4581]
[1646658084398,0.21597424,84.226,84.12,17.15]
[1646658084598,0.21597424,84.226,84.125,24.01228537]
[1646658084802,119.4,84.219,84.126,5.939]
[1646658085002,0.21597424,84.218,84.126,5.939]
[1646658085199,119.4,84.219,84.126,5.939]
[1646658085399,165.3308,84.219,84.126,5.939]
[1646658086100,34.23332093,84.199,84.126,5.939]
[1646658086299,22.7638,84.198,84.126,5.939]
[1646658086500,22.7638,84.198,84.13,17.8295]
[1646658086699,22.7638,84.198,84.131,5.94]
[1646658086900,22.17676582,84.198,84.131,5.94]
[1646658087302,22.17676582,84.198,84.131,29.95228537]
[1646658087500,22.17676582,84.198,84.14,17.8275]
[1646658087700,22.17676582,84.198,84.141,5.94]
[1646658089503,22.17676582,84.198,84.15,17.824]
[1646658089804,22.17676582,84.198,84.151,5.94]
[1646658090001,34.46438566,84.205,84.151,5.94]
[1646658093007,34.46438566,84.205,84.15,24.074]
[1646658093407,34.46438566,84.205,84.15,6.25]
[1646658093809,34.46438566,84.205,84.15,6.0]
[1646658094209,17.8289,84.2,84.15,6.0]
[1646658094407,18.0789,84.2,84.15,6.0]
[1646658094607,119.4,84.199,84.132,5.939]
[1646658094811,0.13914974,84.198,84.132,5.939]
[1646658095011,0.13914974,84.198,84.113,5.94]
[1646658095409,143.3458,84.199,84.113,5.94]
[1646658095608,0.12054446,84.198,84.113,5.94]
[1646658095809,17.8348,84.18,84.113,5.94]
[1646658096009,42.43945924,84.179,84.113,5.94]
[1646658096210,42.43945924,84.179,84.15,6.0]
[1646658096411,42.43945924,84.179,84.15,6.25]
[1646658100511,42.43945924,84.179,84.15,0.25]
[1646658100710,42.43945924,84.179,84.121,11.94]
[1646658102012,42.43945924,84.179,84.13,17.8304]
[1646658102213,42.43945924,84.179,84.131,11.941]
[1646658103214,0.25,84.18,84.131,11.941]
[1646658103415,49.806,84.189,84.131,11.941]
[1646658103818,17.8334,84.18,84.131,11.941]
[1646658104016,18.0834,84.18,84.131,11.941]
[1646658104418,48.31730361,84.179,84.131,11.941]
[1646658108023,0.25,84.18,84.131,11.941]
[1646658108224,49.806,84.189,84.131,11.941]
[1646658110025,49.806,84.189,84.14,17.8284]
[1646658110231,49.806,84.189,84.141,6.0]
[1646658110730,49.806,84.189,84.14,0.25]
[1646658111329,49.806,84.189,84.132,6.0]
[1646658118054,49.806,84.189,84.14,17.8286]
[1646658118252,49.806,84.189,84.141,6.0]
[1646658118854,49.806,84.189,84.14,0.25]
[1646658119252,49.806,84.189,84.15,17.8261]
[1646658119453,0.6761,84.201,84.151,6.0]
[1646658120154,0.6761,84.201,84.15,0.25]
[1646658120557,0.6761,84.201,84.16,17.824]
[1646658120856,0.6761,84.201,84.161,6.0]
[1646658121255,38.37218999,84.2,84.16,0.25]
[1646658121855,38.37218999,84.2,84.15,17.8259]
[1646658122055,38.37218999,84.2,84.151,6.0]
[1646658122955,38.37218999,84.2,84.152,5.939]
[1646658123162,38.37218999,84.2,84.153,6.0]
[1646658123356,38.37218999,84.2,84.154,5.939]
[1646658123557,38.37218999,84.2,84.155,6.0]
[1646658123756,38.37218999,84.2,84.156,5.939]
[1646658123959,38.37218999,84.2,84.157,6.0]
[1646658124157,38.37218999,84.2,84.158,5.939]
[1646658124558,38.37218999,84.2,84.151,5.939]
[1646658124760,38.37218999,84.2,84.152,6.0]
[1646658125359,38.37218999,84.2,84.15,0.25]
[1646658125560,22.8372,84.199,84.145,5.94]
[1646658125761,22.8372,84.199,84.146,6.0]
[1646658125960,22.8372,84.199,84.147,5.94]
[1646658126164,22.8372,84.199,84.15,17.8262]
[1646658126360,22.8372,84.199,84.151,6.0]
[1646658129166,22.8372,84.199,84.152,5.94]
[1646658129465,37.41500081,84.198,84.153,6.25]
[1646658129667,37.41500081,84.198,84.154,5.939]
[1646658129867,37.41500081,84.198,84.155,6.0]
[1646658130268,0.25,84.197,84.143,6.0]
[1646658131068,17.8309,84.19,84.143,6.0]
[1646658131267,0.25,84.189,84.136,6.0]
[1646658131467,23.586,84.189,84.137,5.94]
[1646658131668,23.586,84.189,84.138,6.0]
[1646658132068,17.8359,84.18,84.138,6.0]
[1646658132267,39.33444032,84.179,84.117,6.0]
[1646658132470,63.76884032,84.179,84.118,6.191]
[1646658132669,63.76884032,84.179,84.118,5.941]
[1646658132869,63.76884032,84.179,84.113,5.941]
[1646658133069,17.8352,84.17,84.113,5.941]
[1646658133269,0.25,84.169,84.113,5.941]
[1646658133669,24.6844,84.169,84.113,5.941]
[1646658133869,24.6844,84.169,84.114,6.0]
[1646658134069,24.6844,84.169,84.115,0.25]
[1646658134569,17.8378,84.16,84.115,0.25]
[1646658134772,40.63596171,84.159,84.115,0.25]
[1646658134969,0.14725989,84.158,84.115,0.25]
[1646658135168,40.63596171,84.159,84.115,0.25]
[1646658139176,40.38596171,84.159,84.115,0.25]
[1646658139977,24.4344,84.169,84.115,0.25]
[1646658140777,0.25,84.168,84.115,0.25]
[1646658141179,35.27883778,84.168,84.115,0.25]
[1646658141380,35.27883778,84.168,84.12,17.8317]
[1646658141679,0.6485,84.193,84.121,6.25]
[1646658141882,24.074,84.188,84.121,0.25]
[1646658142079,0.676,84.188,84.123,0.13066436]
[1646658142279,0.676,84.188,84.124,119.4]
[1646658142480,0.676,84.188,84.131,119.4]
[1646658142779,0.676,84.188,84.141,119.4]
[1646658142980,0.676,84.188,84.142,150.4456]
[1646658143183,0.676,84.188,84.143,0.16666776]
[1646658143379,0.676,84.188,84.143,16.32784179]
[1646658143581,0.676,84.188,84.145,0.16666776]
[1646658144080,0.676,84.188,84.15,17.8237]
[1646658144280,0.676,84.188,84.16,17.15]
[1646658144481,0.676,84.188,84.161,6.25]
[1646658145083,0.676,84.188,84.161,32.60228537]
[1646658145883,0.676,84.188,84.161,56.75263893]
[1646658146084,0.676,84.188,84.17,17.8212]
[1646658146287,0.676,84.188,84.171,6.25]
[1646658149492,0.676,84.188,84.171,0.25]
[1646658149694,0.676,84.188,84.164,0.25]
[1646658150896,0.676,84.188,84.153,0.25]
[1646658151297,0.676,84.188,84.153,24.40035356]
[1646658151503,0.676,84.188,84.154,30.15035356]
[1646658151699,0.676,84.188,84.155,0.25]
[1646658151998,0.676,84.188,84.155,30.40035356]
[1646658152199,0.676,84.188,84.16,17.824]
[1646658152399,0.676,84.188,84.161,6.25]
[1646658154007,41.95123949,84.212,84.161,6.25]
[1646658154208,24.578,84.219,84.161,6.25]
[1646658154406,24.578,84.219,84.17,17.8215]
[1646658154605,24.578,84.219,84.171,6.25]
[1646658155707,0.25,84.218,84.171,6.25]
[1646658155910,8.33,84.218,84.171,0.25]
[1646658156107,8.33,84.218,84.158,0.25]
[1646658156310,8.33,84.218,84.154,0.25]
[1646658158210,8.33,84.218,84.153,6.0]
[1646658158512,0.619,84.217,84.153,6.0]
[1646658159311,17.8273,84.21,84.153,6.0]
[1646658159511,44.73985662,84.208,84.153,6.0]
[1646658159711,0.25,84.207,84.154,0.25]
[1646658161313,17.8289,84.2,84.154,0.25]
[1646658161513,0.25,84.199,84.144,6.0]
[1646658161715,0.11973632,84.198,84.131,6.0]
[1646658162113,23.2943,84.199,84.131,30.15035356]
[1646658162313,23.2943,84.199,84.14,17.8286]
[1646658162513,23.2943,84.199,84.141,6.0]
[1646658162914,23.2943,84.199,84.142,0.25]
[1646658163313,23.2943,84.199,84.143,24.15035356]
[1646658163516,23.2943,84.199,84.15,17.8263]
[1646658163715,23.2943,84.199,84.151,6.25]
[1646658164916,23.0443,84.199,84.151,0.25]
[1646658165115,6.0,84.228,84.151,24.15035356]
[1646658165315,0.25,84.216,84.16,17.15]
[1646658165515,0.25,84.216,84.161,6.25]
[1646658165716,0.25,84.216,84.161,30.40035356]
[1646658165916,41.29124741,84.216,84.161,30.40035356]
[1646658166115,63.80384741,84.216,84.161,30.40035356]
[1646658166921,63.80384741,84.216,84.161,6.25]
[1646658167317,0.6153,84.215,84.161,6.25]
[1646658167518,0.6153,84.215,84.161,0.25]
[1646658167717,6.6153,84.215,84.152,0.25]
[1646658167917,0.25,84.214,84.145,0.25]
[1646658168117,17.827,84.21,84.145,0.25]
[1646658168320,0.864,84.209,84.145,0.25]
[1646658169320,0.864,84.209,84.15,17.826]
[1646658169527,17.8291,84.2,84.151,6.25]
[1646658169722,34.95463363,84.199,84.152,6.25]
[1646658169923,34.95463363,84.199,84.145,0.25]
[1646658170121,24.7418,84.198,84.145,0.25]
[1646658170321,0.25,84.197,84.145,0.25]
[1646658171223,0.25,84.197,84.145,24.40035356]
[1646658171423,0.25,84.197,84.146,6.0]
[1646658171622,0.25,84.197,84.147,0.25]
[1646658172725,0.25,84.197,84.145,0.25]
[1646658172926,6.32,84.197,84.133,0.25]
[1646658173824,6.32,84.197,84.133,24.40035356]
[1646658174025,6.32,84.197,84.134,6.0]
[1646658174226,17.8312,84.19,84.135,0.25]
[1646658174424,17.8312,84.19,84.135,24.40035356]
[1646658174630,17.8312,84.19,84.136,6.0]
[1646658174826,120.2932,84.189,84.122,24.15035356]
[1646658175026,0.10965116,84.188,84.123,6.0]
[1646658175227,0.6495,84.187,84.123,6.0]
[1646658175429,35.47265562,84.186,84.123,6.0]
[1646658175626,6.9123,84.185,84.122,24.15035356]
[1646658176026,6.9123,84.185,84.123,26.3503213]
[1646658176227,17.8371,84.17,84.124,0.25]
[1646658176428,48.09246654,84.169,84.124,24.40035356]
[1646658176628,48.09246654,84.169,84.125,32.3503213]
[1646658176830,48.09246654,84.169,84.125,56.50067486]
[1646658177028,48.09246654,84.169,84.126,24.15035356]
[1646658177231,48.09246654,84.169,84.127,6.0]
[1646658178029,48.09246654,84.169,84.126,24.15035356]
[1646658178232,48.09246654,84.169,84.127,6.25]
[1646658179531,48.09246654,84.169,84.126,24.15035356]
[1646658180332,48.09246654,84.169,84.127,0.25]
[1646658182840,48.09246654,84.169,84.127,6.25]
[1646658183338,48.09246654,84.169,84.127,0.25]
[1646658185440,17.8376,84.16,84.127,0.25]
[1646658185643,24.4569,84.168,84.126,0.25]
[1646658185840,0.25,84.167,84.126,0.25]
[1646658186540,0.25,84.167,84.114,6.25]
[1646658187962,0.25,84.167,84.115,24.15035356]
[1646658188161,0.25,84.167,84.12,17.8328]
[1646658188363,0.25,84.167,84.121,6.25]
[1646658188661,0.25,84.167,84.121,32.6003213]
[1646658190863,0.25,84.167,84.121,26.6003213]
[1646658192065,0.25,84.167,84.121,0.25]
[1646658192264,0.25,84.167,84.116,6.25]
[1646658193965,0.25,84.167,84.117,5.942]
[1646658194165,0.25,84.167,84.118,6.25]
[1646658194365,0.25,84.167,84.119,5.942]
[1646658194566,0.25,84.167,84.12,6.25]
[1646658194765,0.25,84.167,84.121,5.942]
[1646658194968,0.25,84.167,84.122,6.25]
[1646658195166,0.25,84.167,84.123,5.942]
[1646658195366,0.25,84.167,84.124,0.25]
[1646658196167,17.8376,84.16,84.124,0.25]
[1646658196367,17.8376,84.16,84.122,6.0]
[1646658196368,0.25,84.159,84.122,6.0]
[1646658196569,0.25,84.159,84.107,11.942]
[1646658196771,0.25,84.159,84.107,5.942]
[1646658196968,0.21585453,84.158,84.06,17.15]
[1646658197168,17.8401,84.15,84.061,28.8695]
[1646658197372,119.4,84.147,84.061,28.8695]
[1646658197570,0.33664811,84.145,84.062,5.943]
[1646658197768,0.33664811,84.145,84.063,6.0]
[1646658197769,0.33664811,84.143,84.063,6.0]
[1646658198068,0.33664811,84.143,84.064,5.945]
[1646658198069,0.33664811,84.141,84.064,5.945]
[1646658198367,119.73664811,84.139,84.065,6.0]
[1646658198567,0.33664811,84.137,84.066,5.945]
[1646658198771,0.6191,84.136,84.067,6.25]
[1646658198969,43.58123759,84.135,84.068,5.945]
[1646658199169,0.33664811,84.133,84.069,6.25]
[1646658199368,0.33664811,84.133,84.07,5.945]
[1646658199570,30.3149,84.134,84.071,6.25]
[1646658199769,30.3149,84.134,84.072,5.945]
[1646658199971,30.3149,84.134,84.073,6.25]
[1646658200173,17.8466,84.12,84.073,6.25]
[1646658200372,41.14034834,84.119,84.073,6.25]
[1646658200570,41.14034834,84.119,84.073,0.25]
[1646658201073,41.14034834,84.119,84.065,6.25]
[1646658201271,41.14034834,84.119,84.066,5.945]
[1646658201471,41.14034834,84.119,84.067,6.25]
[1646658201671,41.14034834,84.119,84.068,5.945]
[1646658201871,41.14034834,84.119,84.069,6.25]
[1646658202170,41.14034834,84.119,84.07,17.8441]
[1646658202372,41.14034834,84.119,84.071,6.25]
[1646658202970,41.14034834,84.119,84.071,0.25]
[1646658203172,23.5884,84.118,84.071,0.25]
[1646658203470,0.25,84.117,84.071,0.25]
[1646658203676,0.25,84.117,84.063,0.25]
[1646658204372,17.8482,84.11,84.063,0.25]
[1646658204573,0.25,84.109,84.063,0.25]
[1646658206180,55.0,84.108,84.062,5.75]
[1646658206382,0.25,84.107,84.054,5.946]
[1646658206981,47.60116748,84.106,84.054,5.946]
[1646658207179,0.25,84.105,84.054,5.946]
[1646658208280,0.25,84.105,84.055,6.25]
[1646658215011,0.25,84.105,84.054,5.946]
[1646658215012,17.8502,84.1,84.054,5.946]
[1646658215210,0.12896239,84.098,84.054,5.946]
[1646658215611,0.25,84.099,84.043,24.1885]
[1646658215814,0.25,84.099,84.029,45.82032226]
[1646658216011,0.25,84.099,84.03,6.0]
[1646658216214,0.25,84.104,84.03,6.0]
[1646658216412,0.25,84.104,84.03,5.78287409]
[1646658216815,17.8525,84.09,84.03,5.78287409]
[1646658217115,69.02520316,84.089,84.03,5.78287409]
[1646658217812,6.6541,84.088,84.03,5.78287409]
[1646658218012,17.8565,84.08,84.016,21.54102226]
[1646658218213,17.8565,84.08,84.017,6.0]
[1646658218613,6.0,84.079,84.017,6.0]
[1646658218819,29.8869,84.079,84.017,6.0]
[1646658219013,23.8869,84.079,84.017,6.0]
[1646658219214,6.25,84.078,84.017,5.5]
[1646658219715,17.8568,84.07,84.017,5.5]
[1646658219916,35.08348979,84.069,84.017,5.5]
[1646658220113,35.08348979,84.069,84.018,0.25]
[1646658220314,23.8869,84.068,84.005,6.25]
[1646658220515,0.25,84.067,84.005,28.8188318]
[1646658220722,0.25,84.067,84.005,6.25]
[1646658220926,0.25,84.067,84.006,22.5688318]
[1646658221119,0.25,84.067,84.007,6.25]
[1646658221720,119.65,84.067,84.007,6.25]
[1646658221918,0.25,84.067,84.007,28.8188318]
[1646658222118,17.8597,84.06,84.007,28.8188318]
[1646658222318,0.25,84.059,84.007,28.8188318]
[1646658223524,0.25,84.059,84.007,28.5688318]
[1646658223722,17.8607,84.05,83.991,20.97704308]
[1646658223923,35.5009455,84.048,83.992,6.25]
[1646658224123,0.25,84.047,83.992,0.25]
[1646658224725,6.25,84.047,83.992,0.25]
[1646658224926,17.8638,84.04,83.992,0.25]
[1646658225130,0.25,84.039,83.984,0.25]
[1646658225626,119.65,84.039,83.98,18.84806864]
[1646658225829,119.4,84.037,83.98,0.98426864]
[1646658226033,17.865,84.03,83.98,0.98426864]
[1646658226225,49.50587175,84.029,83.98,0.98426864]
[1646658226432,24.3678,84.028,83.98,0.98426864]
[1646658226626,0.8679,84.027,83.98,0.98426864]
[1646658227226,17.8681,84.02,83.964,6.0]
[1646658227427,0.25,84.019,83.961,22.6724]
[1646658227628,0.1653528,84.018,83.961,22.6724]
[1646658227828,0.6179,84.017,83.961,22.6724]
[1646658228027,120.0179,84.017,83.961,22.6724]
[1646658228227,17.8719,84.01,83.961,22.6724]
[1646658228427,17.8719,84.01,83.939,20.44237846]
[1646658228428,119.65,84.009,83.939,20.44237846]
[1646658228632,119.4,84.007,83.94,6.0]
[1646658228828,11.43020484,84.008,83.934,20.97704308]
[1646658228829,119.4,84.005,83.934,20.97704308]
[1646658229027,40.45164734,84.002,83.926,20.44237846]
[1646658229227,17.8721,84.0,83.93,6.0]
[1646658229428,0.8701,83.999,83.93,6.0]
[1646658229728,119.4,83.987,83.93,6.0]
[1646658229929,0.13329707,83.984,83.93,6.0]
[1646658230127,0.38329707,83.984,83.93,6.0]
[1646658230328,6.38329707,83.984,83.93,6.0]
[1646658230528,17.8767,83.98,83.93,6.0]
[1646658230729,6.25,83.979,83.93,6.0]
[1646658230929,0.6213,83.978,83.915,114.1]
[1646658231135,23.3156,83.978,83.915,114.1]
[1646658231330,6.25,83.977,83.915,114.1]
[1646658231632,42.12681992,83.975,83.915,114.1]
[1646658231930,17.8783,83.97,83.915,114.1]
[1646658232134,0.25,83.969,83.915,114.1]
[1646658232931,0.25,83.969,83.916,6.25]
[1646658233933,0.25,83.969,83.916,6.0]
[1646658234140,0.25,83.969,83.9,18.94477846]
[1646658234141,17.8806,83.96,83.9,18.94477846]
[1646658234334,34.53363978,83.959,83.901,6.0]
[1646658234538,0.6186,83.958,83.899,6.0]
[1646658234736,6.6186,83.958,83.899,6.0]
[1646658234936,0.25,83.957,83.899,6.0]
[1646658235138,0.6149,83.956,83.9,20.97704308]
[1646658235336,23.8601,83.968,83.901,6.0]
[1646658235538,0.6076,83.997,83.904,114.1]
[1646658235737,48.9153,84.025,83.906,0.14643873]
[1646658235937,48.9153,84.025,83.905,146.62704308]
[1646658236140,40.77519041,84.024,83.905,180.29268894]
[1646658236450,17.8678,84.02,83.911,119.4]
[1646658236638,0.8469,84.019,83.913,119.4]
[1646658236841,0.8469,84.019,83.915,119.4]
[1646658237040,0.8469,84.019,83.917,119.4]
[1646658237238,0.5969,84.019,83.919,119.4]
[1646658237440,0.5969,84.019,83.92,0.25]
[1646658237639,17.8697,84.01,83.94,17.8703]
[1646658237838,48.20936248,84.009,83.941,6.25]
[1646658238244,48.20936248,84.009,83.941,0.25]
[1646658238440,48.20936248,84.009,83.942,14.7208674]
[1646658238641,48.20936248,84.009,83.95,17.8686]
[1646658238841,48.20936248,84.009,83.951,6.25]
[1646658239241,48.20936248,84.009,83.951,0.25]
[1646658239843,17.8717,84.0,83.944,0.25]
[1646658240042,0.25,83.999,83.944,0.25]
[1646658240343,0.25,84.007,83.937,0.25]
[1646658241549,17.8717,84.0,83.937,0.25]
[1646658241745,0.25,83.999,83.937,0.25]
[1646658242547,0.25,83.999,83.94,17.871]
[1646658242747,0.25,84.007,83.941,6.25]
[1646658243549,17.8716,84.0,83.941,6.25]
[1646658243749,0.25,83.999,83.942,6.0]
[1646658243948,0.25,83.999,83.943,0.25]
[1646658244150,0.25,83.999,83.941,0.25]
[1646658244948,0.25,84.007,83.941,6.25]
[1646658246550,0.6182,84.006,83.95,17.8692]
[1646658246752,0.25,84.007,83.951,6.25]
[1646658247167,0.25,84.007,83.952,119.4]
[1646658247367,0.25,84.008,83.953,6.25]
[1646658247568,0.25,84.008,83.96,17.8662]
[1646658247770,48.20936248,84.009,83.961,6.25]
[1646658249069,48.20936248,84.009,83.961,0.25]
[1646658249274,48.20936248,84.009,83.951,6.25]
[1646658250270,0.25,84.008,83.951,6.25]
[1646658251076,0.25,84.008,83.96,17.8665]
[1646658251273,0.8683,84.019,83.961,6.25]
[1646658251476,0.25,84.023,83.961,6.25]
[1646658251975,0.25,84.023,83.961,0.25]
[1646658252172,48.34616032,84.023,83.961,0.25]
[1646658252373,48.34616032,84.023,83.961,6.0]
[1646658252574,48.34616032,84.023,83.962,0.25]
[1646658254276,17.867,84.02,83.962,0.25]
[1646658254478,0.25,84.019,83.962,0.25]
[1646658255374,35.28964919,84.009,83.962,0.25]
[1646658255574,0.25,84.008,83.962,0.25]
[1646658255776,0.25,84.008,83.944,0.25]
[1646658256878,0.25,84.008,83.95,17.8692]
[1646658257081,0.25,84.008,83.951,6.25]
[1646658257680,24.6046,84.008,83.951,6.25]
[1646658259882,17.8714,84.0,83.951,6.25]
[1646658260085,119.53819602,83.998,83.93,14.7208674]
[1646658260283,24.6046,84.008,83.919,23.4029]
[1646658260284,119.4,83.994,83.919,23.4029]
[1646658260485,119.4,83.994,83.904,22.8237]
[1646658260486,0.17519222,83.991,83.92,6.0]
[1646658260686,0.42519222,83.991,83.906,6.0]
[1646658260884,0.17519222,83.989,83.906,6.0]
[1646658261083,0.42519222,83.989,83.906,6.0]
[1646658261284,119.4,83.977,83.907,0.25]